fUST/lending_fUST_20251231
["ID","MTS","AMOUNT","RATE_DAILY","PERIOD"]
[400186356,1767178240091,-298.53483888,0.00013699,2]
[400186358,1767178240100,-500.0,0.00013699,2]
[400186360,1767178240109,-500.0,0.00013699,2]
[400186362,1767178240119,-500.0,0.00013699,2]
[400186364,1767178240127,-500.0,0.00013699,2]
[400186366,1767178240136,-500.0,0.00013699,2]
[400186368,1767178240145,-500.57498562,0.00013699,2]
[400186369,1767178240155,-500.0,0.00013699,2]
[400186371,1767178240164,-500.0,0.00013699,2]
[400186373,1767178240173,-500.0,0.00013699,2]
[400186375,1767178240183,-500.0,0.00013699,2]
[400186377,1767178240192,-500.0,0.00013699,2]
[400186379,1767178240202,-500.0,0.00013699,2]
[400186381,1767178240211,-500.0,0.00013699,2]
[400186383,1767178240221,-500.0,0.00013699,2]
[400186385,1767178240230,-500.0,0.00013699,2]
[400186387,1767178240240,-500.0,0.00013699,2]
[400186389,1767178240249,-500.0,0.00013699,2]
[400186391,1767178240258,-500.0,0.00013699,2]
[400186393,1767178240268,-309.28633635,0.00013699,2]
[400186395,1767178240277,-158.3853059,0.00013699,2]
[400186397,1767178240286,-307.59957655,0.00013699,2]
[400186399,1767178240295,-500.0,0.00013699,2]
[400186401,1767178240304,-500.0,0.00013699,2]
[400186403,1767178240313,-500.0,0.00013699,2]
[400186405,1767178240323,-163.65866633,0.00013699,2]
[400186407,1767178240332,-158.10807846,0.00013699,2]
[400186409,1767178240342,-500.0,0.00013699,2]
[400186411,1767178240351,-500.0,0.00013699,2]
[400186413,1767178240360,-500.0,0.00013699,2]
[400186415,1767178240370,-500.0,0.00013699,2]
[400186417,1767178240379,-500.0,0.00013699,2]
[400186419,1767178240388,-500.0,0.00013699,2]
[400186421,1767178240398,-500.0,0.00013699,2]
[400186423,1767178240408,-500.0,0.00013699,2]
[400186425,1767178240417,-500.0,0.00013699,2]
[400186427,1767178240426,-500.0,0.00013699,2]
[400186429,1767178240435,-500.0,0.00013699,2]
[400186431,1767178240446,-500.0,0.00013699,2]
[400186433,1767178240455,-500.0,0.00013699,2]
[400186435,1767178240464,-500.0,0.00013699,2]
[400186437,1767178240474,-500.0,0.00013699,2]
[400186439,1767178240483,-500.0,0.00013699,2]
[400186441,1767178240492,-500.0,0.00013699,2]
[400186443,1767178240501,-500.0,0.00013699,2]
[400186445,1767178240509,-465.53448151,0.00013699,2]
[400186447,1767178240518,-500.0,0.00013699,2]
[400186449,1767178240528,-150.0,0.00013729,2]
[400186451,1767178240537,-1194.02,0.00013812,2]
[400186452,1767178240547,-1194.02,0.00013812,2]
[400186454,1767178240556,-1194.02,0.00013812,2]
[400186456,1767178240565,-1194.02,0.00013812,2]
[400186459,1767178240575,-1194.24,0.00013812,2]
[400186461,1767178240585,-500.0,0.00013821,2]
[400186463,1767178240595,-1000.0,0.00013821,2]
[400186465,1767178240604,-1000.0,0.00013821,2]
[400186467,1767178240612,-1000.0,0.00013821,2]
[400186469,1767178240623,-1000.0,0.00013821,2]
[400186471,1767178240632,-1000.0,0.00013821,2]
[400186472,1767178240642,-1000.0,0.00013821,2]
[400186474,1767178240651,-1000.0,0.00013821,2]
[400186476,1767178240660,-1000.0,0.00013821,2]
[400186478,1767178240670,-1000.0,0.00013821,2]
[400186480,1767178240679,-1000.0,0.00013821,2]
[400186482,1767178240688,-1000.0,0.00013821,2]
[400186484,1767178240697,-1000.0,0.00013821,2]
[400186486,1767178240706,-1000.0,0.00013821,2]
[400186488,1767178240716,-1000.0,0.00013821,2]
[400186490,1767178240725,-696.20087533,0.00013821,2]
[400186492,1767178240735,-1000.0,0.00013821,2]
[400186494,1767178240744,-190.31177109,0.00013821,2]
[400186496,1767178240753,-1000.0,0.00013821,2]
[400186498,1767178240767,-1000.0,0.00013821,2]
[400186500,1767178240776,-1000.0,0.00013821,2]
[400186502,1767178240785,-1000.0,0.00013821,2]
[400186504,1767178240795,-1000.0,0.00013821,2]
[400186506,1767178240806,-1000.0,0.00013821,2]
[400186508,1767178240815,-1000.0,0.00013821,2]
[400186510,1767178240824,-1000.0,0.00013821,2]
[400186512,1767178240835,-1000.0,0.00013821,2]
[400186514,1767178240843,-1000.0,0.00013821,2]
[400186516,1767178240853,-1000.0,0.00013821,2]
[400186518,1767178240863,-1000.0,0.00013821,2]
[400186520,1767178240872,-349.3977641,0.00013821,2]
[400186522,1767178240882,-1000.0,0.00013821,2]
[400186524,1767178240891,-186.16786472,0.00013821,2]
[400186526,1767178240900,-1000.0,0.00013821,2]
[400186528,1767178240909,-1000.0,0.00013821,2]
[400186530,1767178240918,-151.0,0.00013821,2]
[400186532,1767178240927,-151.0,0.00013821,2]
[400186534,1767178240936,-151.0,0.00013821,2]
[400186536,1767178240945,-150.0,0.00013866,2]
[400186538,1767178240955,-505.56,0.0001388,2]
[400186539,1767178240964,-375.83906877,0.00013944,2]
[400186541,1767178240973,-528.21108412,0.00014094,2]
[400186543,1767178240983,-2112.84433648,0.00014094,2]
[400186545,1767178240992,-4749.14585733,0.00014094,2]
[400186547,1767178241002,-790.80620855,0.00014147,2]
[400186549,1767178241011,-600.0,0.00014221,2]
[400186551,1767178241020,-1000.0,0.00014247,2]
[400186553,1767178241030,-1000.0,0.00014247,2]
[400186555,1767178241038,-688.75934812,0.00014247,2]
[400186557,1767178241048,-1000.0,0.00014247,2]
[400186559,1767178241058,-1000.0,0.00014247,2]
[400186561,1767178241067,-1000.0,0.00014247,2]
[400186563,1767178241077,-1000.0,0.00014247,2]
[400186565,1767178241086,-505.9697834,0.00014247,2]
[400186567,1767178241098,-1000.0,0.00014247,2]
[400186569,1767178241107,-609.17214565,0.00014247,2]
[400186571,1767178241116,-297.63479171,0.00014247,2]
[400186573,1767178241125,-1000.0,0.00014247,2]
[400186575,1767178241135,-1000.0,0.00014247,2]
[400186577,1767178241144,-1000.0,0.00014247,2]
[400186579,1767178241153,-1000.0,0.00014247,2]
[400186581,1767178241163,-1000.0,0.00014247,2]
[400186583,1767178241172,-251.84601956,0.00014247,2]
[400186585,1767178241182,-1000.0,0.00014247,2]
[400186587,1767178241190,-500.68443154,0.00014247,2]
[400186589,1767178241199,-1000.0,0.00014247,2]
[400186591,1767178241208,-1000.0,0.00014247,2]
[400186593,1767178241216,-500.4478313,0.00014247,2]
[400186594,1767178241224,-1000.0,0.00014247,2]
[400186596,1767178241233,-1000.0,0.00014247,2]
[400186598,1767178241242,-1000.0,0.00014247,2]
[400186600,1767178241251,-1000.0,0.00014247,2]
[400186602,1767178241260,-1000.0,0.00014247,2]
[400186604,1767178241269,-1000.0,0.00014247,2]
[400186606,1767178241279,-1024.36073826,0.00014247,2]
[400186608,1767178241288,-1000.0,0.00014247,2]
[400186610,1767178241298,-1000.0,0.00014247,2]
[400186612,1767178241308,-1000.0,0.00014247,2]
[400186614,1767178241317,-1000.0,0.00014247,2]
[400186616,1767178241327,-1000.0,0.00014247,2]
[400186618,1767178241336,-1002.43895782,0.00014247,2]
[400186620,1767178241346,-1000.0,0.00014247,2]
[400186622,1767178241356,-911.90264951,0.00014247,2]
[400186625,1767178241366,-500.48099046,0.00014247,2]
[400186627,1767178241376,-1000.0,0.00014247,2]
[400186628,1767178241385,-1000.0,0.00014247,2]
[400186630,1767178241395,-1000.0,0.00014247,2]
[400186632,1767178241404,-1000.0,0.00014247,2]
[400186634,1767178241413,-1000.0,0.00014247,2]
[400186636,1767178241423,-1000.0,0.00014247,2]
[400186638,1767178241432,-1000.0,0.00014247,2]
[400186640,1767178241441,-1000.75482131,0.00014247,2]
[400186642,1767178241450,-1000.0,0.00014247,2]
[400186644,1767178241460,-1000.0,0.00014247,2]
[400186646,1767178241469,-495.63847364,0.00014247,2]
[400186648,1767178241479,-1000.0,0.00014247,2]
[400186650,1767178241488,-1000.0,0.00014247,2]
[400186652,1767178241497,-1000.0,0.00014247,2]
[400186654,1767178241506,-1000.0,0.00014247,2]
[400186656,1767178241515,-1000.0,0.00014247,2]
[400186658,1767178241524,-1000.0,0.00014247,2]
[400186660,1767178241534,-1000.0,0.00014247,2]
[400186662,1767178241544,-439.9841302,0.00014247,2]
[400186664,1767178241553,-1000.0,0.00014247,2]
[400186666,1767178241563,-1000.0,0.00014247,2]
[400186668,1767178241572,-1000.0,0.00014247,2]
[400186670,1767178241581,-1000.0,0.00014247,2]
[400186672,1767178241591,-1000.0,0.00014247,2]
[400186674,1767178241600,-1000.0,0.00014247,2]
[400186676,1767178241610,-295.43360933,0.00014247,2]
[400186678,1767178241620,-454.65827101,0.00014247,2]
[400186680,1767178241629,-1000.0,0.00014247,2]
[400186682,1767178241638,-1000.0,0.00014247,2]
[400186684,1767178241647,-1000.0,0.00014247,2]
[400186686,1767178241656,-1000.0,0.00014247,2]
[400186688,1767178241666,-1000.0,0.00014247,2]
[400186690,1767178241675,-1000.0,0.00014247,2]
[400186692,1767178241685,-1000.0,0.00014247,2]
[400186694,1767178241695,-866.45646788,0.00014247,2]
[400186696,1767178241705,-151.0,0.00014247,2]
[400186698,1767178241715,-158.312179,0.00014247,2]
[400186700,1767178241724,-1436.184966,0.00014247,2]
[400186701,1767178241734,-1436.184966,0.00014247,2]
[400186703,1767178241743,-1436.184966,0.00014247,2]
[400186705,1767178241753,-1436.184966,0.00014247,2]
[400186707,1767178241766,-202.297586,0.00014247,2]
[400186709,1767178241776,-202.297586,0.00014247,2]
[400186711,1767178241785,-202.297586,0.00014247,2]
[400186713,1767178241794,-202.297586,0.00014247,2]
[400186715,1767178241805,-155.015211,0.00014247,2]
[400186717,1767178241815,-151.0,0.00014247,2]
[400186719,1767178241825,-151.0,0.00014247,2]
[400186721,1767178241834,-156.562526,0.00014247,2]
[400186723,1767178241844,-720.0,0.00014288,2]
[400186725,1767178241853,-266.08,0.00014288,2]
[400186727,1767178241863,-202.297586,0.00014368,2]
[400186729,1767178241872,-202.297586,0.00014368,2]
[400186731,1767178241881,-202.297586,0.00014368,2]
[400186733,1767178241890,-202.297586,0.00014368,2]
[400186735,1767178241899,-1500.0,0.00014368,2]
[400186737,1767178241908,-252.44576455,0.00014368,2]
[400186739,1767178241917,-1500.0,0.00014368,2]
[400186741,1767178241927,-1500.0,0.00014368,2]
[400186743,1767178241936,-1500.0,0.00014368,2]
[400186744,1767178241946,-1500.0,0.00014368,2]
[400186746,1767178241955,-282.65977069,0.00014368,2]
[400186748,1767178241964,-506.37696416,0.00014368,2]
[400186750,1767178241973,-1500.0,0.00014368,2]
[400186752,1767178241982,-720.45191793,0.00014368,2]
[400186754,1767178241991,-1034.26412326,0.00014368,2]
[400186756,1767178242001,-965.35115233,0.00014368,2]
[400186758,1767178242010,-1500.0,0.00014368,2]
[400186760,1767178242019,-1500.0,0.00014368,2]
[400186762,1767178242028,-1500.0,0.00014368,2]
[400186764,1767178242038,-1185.55855892,0.00014368,2]
[400186766,1767178242047,-739.12450639,0.00014368,2]
[400186768,1767178242057,-1500.0,0.00014368,2]
[400186770,1767178242065,-1500.0,0.00014368,2]
[400186772,1767178242074,-1500.0,0.00014368,2]
[400186774,1767178242083,-1500.0,0.00014368,2]
[400186776,1767178242093,-1500.0,0.00014368,2]
[400186778,1767178242102,-1500.0,0.00014368,2]
[400186780,1767178242111,-1500.0,0.00014368,2]
[400186781,1767178242120,-924.40432946,0.00014368,2]
[400186783,1767178242129,-1500.0,0.00014368,2]
[400186785,1767178242139,-1144.50771368,0.00014368,2]
[400186787,1767178242148,-1500.0,0.00014368,2]
[400186789,1767178242158,-1500.0,0.00014368,2]
[400186791,1767178242167,-1500.0,0.00014368,2]
[400186793,1767178242176,-720.0,0.00014388,2]
[400186795,1767178242186,-272.8127073,0.00014419,2]
[400186797,1767178242195,-295.36008455,0.00014524,2]
[400186799,1767178242204,-231.89926402,0.0001472,2]
[400186801,1767178242214,-2479.43651336,0.00014723,2]
[400186803,1767178242223,-1035.59611465,0.00014747,2]
[400186805,1767178242232,-900.0,0.00014768,2]
[400186807,1767178242241,-909.51288327,0.00014795,2]
[400186822,1767178242366,-1500.0,0.00014795,2]
[400186824,1767178242376,-788.21762562,0.00014795,2]
[400186826,1767178242385,-1415.94669576,0.00014795,2]
[400186828,1767178242394,-1636.69571136,0.00014795,2]
[400186829,1767178242404,-1500.0,0.00014795,2]
[400186831,1767178242413,-1500.0,0.00014795,2]
[400186833,1767178242422,-1078.13053233,0.00014795,2]
[400186835,1767178242431,-1500.0,0.00014795,2]
[400186837,1767178242440,-1500.0,0.00014795,2]
[400186839,1767178242449,-1500.0,0.00014795,2]
[400186841,1767178242459,-1157.67215419,0.00014795,2]
[400186843,1767178242468,-1500.0,0.00014795,2]
[400186845,1767178242478,-1011.86637987,0.00014795,2]
[400186847,1767178242487,-1371.80562161,0.00014795,2]
[400186849,1767178242497,-463.63501052,0.00014795,2]
[400186852,1767178242506,-1402.01463508,0.00014795,2]
[400186854,1767178242520,-1500.0,0.00014795,2]
[400186856,1767178242531,-1500.0,0.00014795,2]
[400186858,1767178242541,-1500.0,0.00014795,2]
[400186860,1767178242551,-1500.0,0.00014795,2]
[400186862,1767178242560,-1500.0,0.00014795,2]
[400186864,1767178242570,-1500.0,0.00014795,2]
[400186866,1767178242579,-1500.0,0.00014795,2]
[400186868,1767178242589,-500.0,0.00014795,2]
[400186870,1767178242598,-1500.0,0.00014795,2]
[400186872,1767178242609,-1500.0,0.00014795,2]
[400186874,1767178242619,-614.96936602,0.00014795,2]
[400186876,1767178242628,-690.10820632,0.00014795,2]
[400186878,1767178242638,-1425.73894344,0.00014795,2]
[400186879,1767178242647,-1500.0,0.00014795,2]
[400186881,1767178242657,-1500.0,0.00014795,2]
[400186883,1767178242666,-1500.0,0.00014795,2]
[400186885,1767178242676,-1500.0,0.00014795,2]
[400186887,1767178242686,-1500.0,0.00014795,2]
[400186889,1767178242696,-1500.0,0.00014795,2]
[400186891,1767178242705,-1500.0,0.00014795,2]
[400186893,1767178242714,-368.38939569,0.00014795,2]
[400186895,1767178242723,-1633.65989049,0.00014795,2]
[400186897,1767178242732,-1500.0,0.00014795,2]
[400186899,1767178242741,-1500.0,0.00014795,2]
[400186901,1767178242751,-1105.24677987,0.00014795,2]
[400186903,1767178242765,-1500.0,0.00014795,2]
[400186905,1767178242774,-1500.0,0.00014795,2]
[400186907,1767178242784,-1016.82099752,0.00014795,2]
[400186909,1767178242793,-1500.0,0.00014795,2]
[400186911,1767178242804,-1500.0,0.00014795,2]
[400186913,1767178242814,-1500.0,0.00014795,2]
[400186915,1767178242824,-1500.0,0.00014795,2]
[400186916,1767178242834,-1500.0,0.00014795,2]
[400186918,1767178242844,-1500.0,0.00014795,2]
[400186920,1767178242854,-1500.0,0.00014795,2]
[400186922,1767178242863,-1500.0,0.00014795,2]
[400186924,1767178242872,-1142.5109954,0.00014795,2]
[400186926,1767178242882,-1500.0,0.00014795,2]
[400186928,1767178242891,-151.0,0.00014795,2]
[400186929,1767178242901,-1436.184966,0.00014795,2]
[400186930,1767178242910,-1436.184966,0.00014795,2]
[400186931,1767178242920,-1436.184966,0.00014795,2]
[400186932,1767178242929,-1436.184966,0.00014795,2]
[400186933,1767178242939,-202.297586,0.00014795,2]
[400186934,1767178242947,-202.297586,0.00014795,2]
[400186935,1767178242957,-202.297586,0.00014795,2]
[400186936,1767178242966,-202.297586,0.00014795,2]
[400186937,1767178242976,-151.0,0.00014795,2]
[400186938,1767178242986,-151.0,0.00014795,2]
[400186939,1767178242996,-231.57158595,0.00014835,2]
[400186940,1767178243006,-100000.0,0.00014882,2]
[400186941,1767178243015,-151.0,0.00014882,2]
[400186942,1767178243024,-1436.184966,0.00014882,2]
[400186943,1767178243034,-1436.184966,0.00014882,2]
[400186945,1767178243043,-1436.184966,0.00014882,2]
[400186947,1767178243053,-1436.184966,0.00014882,2]
[400186948,1767178243063,-202.297586,0.00014882,2]
[400186949,1767178243072,-202.297586,0.00014882,2]
[400186950,1767178243081,-202.297586,0.00014882,2]
[400186951,1767178243091,-202.297586,0.00014882,2]
[400186953,1767178243102,-151.0,0.00014882,2]
[400186955,1767178243111,-151.0,0.00014882,2]
[400186957,1767178243120,-887.269848,0.00014906,2]
[400186959,1767178243130,-2186.5823821,0.00014906,2]
[400186961,1767178243139,-1000.0,0.00014916,2]
[400186963,1767178243149,-2000.0,0.00014916,2]
[400186965,1767178243159,-2000.0,0.00014916,2]
[400186967,1767178243168,-2000.0,0.00014916,2]
[400186969,1767178243178,-2000.0,0.00014916,2]
[400186971,1767178243188,-318.87701711,0.00014916,2]
[400186973,1767178243198,-613.45090759,0.00014916,2]
[400186975,1767178243207,-2000.0,0.00014916,2]
[400186977,1767178243217,-2000.0,0.00014916,2]
[400186979,1767178243226,-1500.0,0.00014916,2]
[400186981,1767178243236,-2000.0,0.00014916,2]
[400186983,1767178243245,-2000.0,0.00014916,2]
[400186985,1767178243255,-1503.81920107,0.00014916,2]
[400186987,1767178243264,-2000.0,0.00014916,2]
[400186989,1767178243273,-2000.0,0.00014916,2]
[400186991,1767178243283,-2000.0,0.00014916,2]
[400186993,1767178243291,-1500.0,0.00014916,2]
[400186995,1767178243301,-1500.0,0.00014916,2]
[400186997,1767178243311,-1500.0,0.00014916,2]
[400186999,1767178243320,-21740.6323437,0.00014926,2]
[400187001,1767178243329,-690.0987707,0.00014926,2]
[400187002,1767178243339,-6693.0042186,0.00014926,2]
[400187004,1767178243348,-758.34,0.00014932,2]
[400187006,1767178243358,-11157.24574238,0.00015,2]
[400187008,1767178243367,-150.77099208,0.00015,2]
[400187010,1767178243376,-151.0,0.00015,2]
[400187012,1767178243386,-151.0,0.00015,2]
[400187014,1767178243396,-587.0,0.00015008,2]
[400187016,1767178243405,-232.461682,0.00015068,2]
[400187018,1767178243415,-803.60344278,0.00015068,2]
[400187020,1767178243424,-1436.184966,0.00015316,2]
[400187022,1767178243433,-1436.184966,0.00015316,2]
[400187024,1767178243443,-1436.184966,0.00015316,2]
[400187026,1767178243452,-1436.184966,0.00015316,2]
[400187028,1767178243461,-900.0,0.00015316,2]
[400187030,1767178243470,-151.0,0.00015342,2]
[400187032,1767178243479,-202.297586,0.00015342,2]
[400187034,1767178243488,-202.297586,0.00015342,2]
[400187036,1767178243498,-202.297586,0.00015342,2]
[400187037,1767178243507,-202.297584,0.00015342,2]
[400187039,1767178243517,-1000.0,0.00015342,2]
[400187041,1767178243527,-1500.0,0.00015342,2]
[400187043,1767178243537,-1500.0,0.00015342,2]
[400187045,1767178243548,-1500.0,0.00015342,2]
[400187047,1767178243558,-2000.0,0.00015342,2]
[400187049,1767178243568,-1500.0,0.00015342,2]
[400187051,1767178243577,-2000.0,0.00015342,2]
[400187053,1767178243587,-509.61748521,0.00015342,2]
[400187055,1767178243597,-182.49603851,0.00015342,2]
[400187057,1767178243607,-1155.66749295,0.00015342,2]
[400187059,1767178243616,-1518.84773542,0.00015342,2]
[400187061,1767178243626,-2000.0,0.00015342,2]
[400187063,1767178243636,-1500.0,0.00015342,2]
[400187065,1767178243646,-1651.58290824,0.00015342,2]
[400187067,1767178243655,-1500.0,0.00015342,2]
[400187069,1767178243664,-1500.0,0.00015342,2]
[400187071,1767178243673,-2000.0,0.00015342,2]
[400187072,1767178243683,-1500.0,0.00015342,2]
[400187074,1767178243694,-2000.0,0.00015342,2]
[400187076,1767178243704,-1886.3706875,0.00015342,2]
[400187078,1767178243714,-1500.0,0.00015342,2]
[400187080,1767178243724,-1010.33134929,0.00015342,2]
[400187082,1767178243733,-1500.0,0.00015342,2]
[400187084,1767178243743,-2000.0,0.00015342,2]
[400187086,1767178243752,-1500.0,0.00015342,2]
[400187088,1767178243766,-1500.0,0.00015342,2]
[400187089,1767178243776,-1492.01262303,0.00015342,2]
[400187090,1767178243787,-1218.16061512,0.00015342,2]
[400187091,1767178243797,-500.0,0.00015342,2]
[400187092,1767178243807,-1004.79599952,0.00015342,2]
[400187093,1767178243816,-1004.98936626,0.00015342,2]
[400187094,1767178243825,-1500.0,0.00015342,2]
[400187095,1767178243836,-2000.0,0.00015342,2]
[400187096,1767178243846,-604.13585388,0.00015342,2]
[400187097,1767178243855,-2000.0,0.00015342,2]
[400187098,1767178243865,-250.0,0.00015352,2]
[400187099,1767178243875,-2500.0,0.00015464,2]
[400187100,1767178243885,-2500.0,0.00015464,2]
[400187101,1767178243895,-2500.0,0.00015464,2]
[400187102,1767178243904,-349.32071924,0.00015464,2]
[400187103,1767178243914,-1260.55819049,0.00015464,2]
[400187104,1767178243924,-2500.0,0.00015464,2]
[400187106,1767178243934,-2500.0,0.00015464,2]
[400187108,1767178243943,-2500.0,0.00015464,2]
[400187109,1767178243952,-2500.0,0.00015464,2]
[400187111,1767178243961,-2500.0,0.00015464,2]
[400187112,1767178243969,-2500.0,0.00015464,2]
[400187113,1767178243979,-524.07972857,0.000155,2]
[400187114,1767178243989,-670.08458382,0.00015702,5]
[400187115,1767178243999,-20853.7420208,0.000158,2]
[400187116,1767178244009,-1436.184966,0.000158,2]
[400187117,1767178244019,-1436.184966,0.000158,2]
[400187118,1767178244028,-1436.184966,0.000158,2]
[400187119,1767178244037,-1436.184964,0.000158,2]
[400187120,1767178244047,-790.80620851,0.00015819,2]
[400187121,1767178244056,-864.0,0.00015826,2]
[400187122,1767178244066,-209.38767467,0.00015885,2]
[400187123,1767178244075,-1508.82384523,0.0001589,2]
[400187124,1767178244085,-151.60877791,0.0001589,2]
[400187125,1767178244095,-154.8977644,0.0001589,2]
[400187126,1767178244105,-167.36182452,0.0001589,2]
[400187127,1767178244114,-277.52543131,0.0001589,2]
[400187128,1767178244124,-2500.0,0.0001589,2]
[400187129,1767178244133,-10000.0,0.00015912,2]
[400187130,1767178244143,-433.17045214,0.00015944,2]
[400187131,1767178244152,-3000.0,0.00016012,2]
[400187132,1767178244162,-3000.0,0.00016012,2]
[400187133,1767178244171,-3000.0,0.00016012,2]
[400187134,1767178244180,-3000.0,0.00016012,2]
[400187135,1767178244190,-707.65831041,0.00016012,2]
[400187136,1767178244199,-3000.0,0.00016012,2]
[400187138,1767178244208,-3000.0,0.00016012,2]
[400187140,1767178244218,-3000.0,0.00016012,2]
[400187141,1767178244227,-1861.9082954,0.00016012,2]
[400187142,1767178244236,-1011.12,0.00016081,2]
[400187143,1767178244247,-151.0,0.00016166,2]
[400187144,1767178244256,-156.587,0.00016166,2]
[400187145,1767178244266,-1500.58333146,0.00016166,2]
[400187146,1767178244275,-151.41075245,0.00016166,2]
[400187147,1767178244285,-500.0,0.00016166,2]
[400187148,1767178244295,-500.0,0.00016166,2]
[400187149,1767178244305,-500.0,0.00016166,2]
[400187150,1767178244316,-1000.0,0.00016166,2]
[400187151,1767178244327,-500.0,0.00016166,2]
[400187152,1767178244336,-195.96791606,0.00016166,2]
[400187153,1767178244348,-500.0,0.00016166,2]
[400187154,1767178244357,-500.0,0.00016166,2]
[400187155,1767178244367,-151.0,0.00016166,2]
[400187156,1767178244376,-259.46774509,0.00016166,2]
[400187157,1767178244386,-500.0,0.00016166,2]
[400187158,1767178244396,-500.0,0.00016166,2]
[400187159,1767178244406,-500.0,0.00016166,2]
[400187160,1767178244415,-500.0,0.00016166,2]
[400187162,1767178244426,-500.0,0.00016166,2]
[400187164,1767178244435,-500.0,0.00016166,2]
[400187166,1767178244444,-500.0,0.00016166,2]
[400187168,1767178244453,-252.03411113,0.00016166,2]
[400187169,1767178244462,-500.0,0.00016166,2]
[400187171,1767178244472,-151.0,0.00016166,2]
[400187173,1767178244482,-151.0,0.00016166,2]
[400187175,1767178244491,-151.0,0.00016166,2]
[400187177,1767178244502,-514.84070869,0.00016166,2]
[400187179,1767178244511,-151.0,0.00016166,2]
[400187180,1767178244522,-151.0,0.00016166,2]
[400187181,1767178244531,-2487.15318209,0.00016166,2]
[400187182,1767178244542,-151.0,0.00016166,2]
[400187183,1767178244551,-151.0,0.00016166,2]
[400187184,1767178244561,-151.0,0.00016166,2]
[400187185,1767178244570,-151.0,0.00016166,2]
[400187186,1767178244580,-151.0,0.00016166,2]
[400187187,1767178244589,-151.0,0.00016166,2]
[400187188,1767178244599,-151.0,0.00016166,2]
[400187189,1767178244609,-151.0,0.00016166,2]
[400187190,1767178244618,-151.0,0.00016166,2]
[400187191,1767178244628,-30000.0,0.00016166,2]
[400187193,1767178244637,-151.0,0.00016166,2]
[400187194,1767178244647,-9517.76521192,0.00016223,2]
[400187196,1767178244656,-151.0,0.000163,2]
[400187198,1767178244666,-209.38767466,0.00016376,2]
[400187200,1767178244675,-151.0,0.00016412,2]
[400187202,1767178244685,-500.0,0.00016438,2]
[400187204,1767178244695,-500.0,0.00016438,2]
[400187205,1767178244706,-637.58528706,0.00016438,2]
[400187206,1767178244715,-500.26,0.00016438,2]
[400187207,1767178244725,-3000.0,0.00016438,2]
[400187208,1767178244735,-823.0,0.00016468,2]
[400187209,1767178244744,-296.02941931,0.0001656,2]
[400187210,1767178244754,-509.05539132,0.0001656,2]
[400187211,1767178244768,-916.29970438,0.0001656,2]
[400187212,1767178244778,-309.78,0.0001656,2]
[400187213,1767178244788,-181.75010899,0.0001656,2]
[400187214,1767178244799,-727.00043596,0.0001656,2]
[400187215,1767178244808,-1635.75098092,0.0001656,2]
[400187216,1767178244818,-213.32446068,0.0001656,2]
[400187217,1767178244828,-853.29784274,0.0001656,2]
[400187218,1767178244838,-1919.92014616,0.0001656,2]
[400187219,1767178244848,-422.38060374,0.0001656,2]
[400187220,1767178244858,-2448.74857563,0.0001656,2]
[400187221,1767178244867,-584.09189109,0.0001656,2]
[400187222,1767178244877,-924.99602616,0.0001656,2]
[400187223,1767178244887,-3500.0,0.0001656,2]
[400187224,1767178244897,-3500.0,0.0001656,2]
[400187225,1767178244907,-1017.91360693,0.0001656,2]
[400187226,1767178244916,-151.0,0.000167,2]
[400187227,1767178244926,-533.88981491,0.00016714,2]
[400187228,1767178244936,-2579.17784983,0.00016714,2]
[400187229,1767178244946,-151.0,0.00016714,2]
[400187230,1767178244956,-20471.15843333,0.00016714,2]
[400187233,1767178245309,-500.0,0.00013699,2]
[400187234,1767178245319,-1000.0,0.00014247,2]